Workbook

Sheet Profile
A1: Client's Profile
A2: Name
A3: DOB - | B3: 1988-08-13
A4: Mobile no -
A5: Mail Id
A6: Pan No.
A7: Education
A8: Occupation
A9: Current Monthly Income
A10: Current Monthly Expenses
A11: Nature of work
A12: Smoker/non smoker
A13: Any Existing Disease
A14: Alcohol
A15: Other Details
A16: Bank Name
A17: Account NO / IBAN NO.
A18: Branch
A19: IFSC CODE / BIC NO.
A20: MICR NO / UST IDNR
A21: NOMINEE NAME
A22: NAMONEE DOB
A23: RELATIONSHIP WITH NOMINEE
A24: VACCINATION DATE 1ST DOSE
A25: VACCINATION DATE 1ST DOSE
A26: Address
A31: Family Details
A32: Name | B32: Relation | C32: Age | D32: Income
A33: =B2 -> 0 | B33: Self | C33: =INT((TODAY()-B3)/365.25) -> 36 | D33: =B9*12 -> 0
B34: Spouse
B35: Child 1
B36: Child 2
B37: Father
B38: Mother
A41: Savings | B41: =B9-B10 -> 0
A42: Emerency Expenses | B42: =B10*6 -> 0
A43: Chile Higher Education Current Cost | B43: 1000000
A44: Laisure Expenses | B44: 200000 | C44: 2
A45: Wealth Goal | B45: 10000000

Sheet Risk Profile
G1: Instructions: Please ensure that all highlighted cells (Grey) have an appropriate response. 1) Enter Client's Name and Code. 2) Ensure that there is only one response for each question. 3) Ensure that there is no error in responses. 4) Check to see if the client agrees with the risk profile. 5) If there is a disagreement then, select the alternate risk profile as per client's reckoning. 6) Ensure that the client has signed off on the risk profiler.
D3: MSA Financial Services
C5: Risk Profiler
C7: Name:
C8: Mobile No
D9: Please select from Drop-down
C10: No. | D10: Questions | E10: Select
B11: =IF(C12>B10,"",IF(C11="",B10,C11)) -> 1 | C11: 1 | D11: Client's Age | E11: =IF(E12="Y",4,IF(E13="Y",3,IF(E14="Y",2,IF(E15="Y",1,"-")))) -> - | F11: 3
B12: 1 | D12: <30 | F12: 3
B13: 1 | D13: 30-45 | F13: 3
B14: 1 | D14: 45-60 | F14: 3
B15: 1 | D15: >60 | F15: 1
B17: 2 | C17: =B15+1 -> 2 | D17: What is your current profession? | E17: =IF(E18="Y",5,IF(E19="Y",4,IF(E20="Y",3,IF(E21="Y",1,IF(E22="Y",2,"-"))))) -> - | F17: 5
B18: 2 | D18: Skilled Professional (Doctor, Lawyer, etc.) | F18: 5
B19: 2 | D19: Salaried | F19: 4
B20: 2 | D20: Businessman | F20: 3
B21: 2 | D21: Homemaker | F21: 1
B22: 2 | D22: Retired | F22: 2
B24: 3 | C24: =B22+1 -> 3 | D24: What is your marital status? | E24: =IF(E25="Y",2,IF(E26="Y",1,"-")) -> - | F24: 1
B25: 3 | D25: Unmarried | F25: 2
B26: 3 | D26: Married | F26: 1
B28: 4 | C28: =B26+1 -> 4 | D28: Select the number of dependent children | E28: =IF(E29="Y",4,IF(E30="Y",3,IF(E31="Y",2,IF(E32="Y",1,"-")))) -> - | F28: 3
B29: 4 | D29: 0 | F29: 4
B30: 4 | D30: 1 | F30: 3
B31: 4 | D31: 2 | F31: 2
B32: 4 | D32: >3 | F32: 1 | M32: Q | N32: Answer | O32: Min | P32: Max
M33: 1 | N33: =IFERROR(INDEX(E:E,MATCH(M33,C:C)),"0") -> - | O33: =MIN(IF(B$11:B$98=M33,F$11:F$98)) -> 1 | P33: =MAX(IF(B$11:B$98=M33,F$11:F$98)) -> 3
B34: 5 | C34: =B32+1 -> 5 | D34: Select the number of other dependents | E34: =IF(E35="Y",4,IF(E36="Y",3,IF(E37="Y",2,IF(E38="Y",1,"-")))) -> - | F34: 3 | M34: =M33+1 -> 2 | N34: - | O34: =MIN(IF(B$11:B$98=M34,F$11:F$98)) -> 1 | P34: =MAX(IF(B$11:B$98=M34,F$11:F$98)) -> 5
B35: 5 | D35: 0 | F35: 4 | M35: 3 | N35: - | O35: =MIN(IF(B$11:B$98=M35,F$11:F$98)) -> 1 | P35: =MAX(IF(B$11:B$98=M35,F$11:F$98)) -> 2
B36: 5 | D36: 1 | F36: 3 | M36: 4 | N36: - | O36: =MIN(IF(B$11:B$98=M36,F$11:F$98)) -> 1 | P36: =MAX(IF(B$11:B$98=M36,F$11:F$98)) -> 4
B37: 5 | D37: 2 | F37: 2 | M37: 5 | N37: - | O37: =MIN(IF(B$11:B$98=M37,F$11:F$98)) -> 1 | P37: =MAX(IF(B$11:B$98=M37,F$11:F$98)) -> 4
B38: 5 | D38: >3 | F38: 1 | M38: 6 | N38: - | O38: =MIN(IF(B$11:B$98=M38,F$11:F$98)) -> 1 | P38: =MAX(IF(B$11:B$98=M38,F$11:F$98)) -> 5
M39: 7 | N39: - | O39: =MIN(IF(B$11:B$98=M39,F$11:F$98)) -> 1 | P39: =MAX(IF(B$11:B$98=M39,F$11:F$98)) -> 4
B40: 6 | C40: =B38+1 -> 6 | D40: What is your current net worth in lakhs? | E40: =IF(E41="Y",5,IF(E42="Y",4,IF(E43="Y",3,IF(E44="Y",2,IF(E45="Y",1,"-"))))) -> - | F40: 1 | M40: 8 | N40: - | O40: =MIN(IF(B$11:B$98=M40,F$11:F$98)) -> 1 | P40: =MAX(IF(B$11:B$98=M40,F$11:F$98)) -> 4
B41: 6 | D41: >1,500 | F41: 5 | M41: 9 | N41: - | O41: =MIN(IF(B$11:B$98=M41,F$11:F$98)) -> 1 | P41: =MAX(IF(B$11:B$98=M41,F$11:F$98)) -> 4
B42: 6 | D42: 500-1,500 | F42: 4 | M42: 10 | N42: - | O42: =MIN(IF(B$11:B$98=M42,F$11:F$98)) -> 1 | P42: =MAX(IF(B$11:B$98=M42,F$11:F$98)) -> 3
B43: 6 | D43: 100-500 | F43: 3 | M43: 11 | N43: - | O43: =MIN(IF(B$11:B$98=M43,F$11:F$98)) -> 1 | P43: =MAX(IF(B$11:B$98=M43,F$11:F$98)) -> 4
B44: 6 | D44: 25-100 | F44: 2 | M44: 12 | N44: - | O44: =MIN(IF(B$11:B$98=M44,F$11:F$98)) -> 1 | P44: =MAX(IF(B$11:B$98=M44,F$11:F$98)) -> 4
B45: 6 | D45: <25 | F45: 1 | M45: 13 | N45: - | O45: =MIN(IF(B$11:B$98=M45,F$11:F$98)) -> 1 | P45: =MAX(IF(B$11:B$98=M45,F$11:F$98)) -> 4
M46: 14 | N46: - | O46: =MIN(IF(B$11:B$98=M46,F$11:F$98)) -> 1 | P46: =MAX(IF(B$11:B$98=M46,F$11:F$98)) -> 4
B47: 7 | C47: =B45+1 -> 7 | D47: What is your annual income from all sources in lakhs? | E47: =IF(E48="Y",1,IF(E49="Y",2,IF(E50="Y",3,IF(E51="Y",4,"-")))) -> - | F47: 2 | M47: 15 | N47: - | O47: =MIN(IF(B$11:B$98=M47,F$11:F$98)) -> 1 | P47: =MAX(IF(B$11:B$98=M47,F$11:F$98)) -> 4
B48: 7 | D48: <10 | F48: 1 | M48: Sum | N48: =SUM(N33:N47) -> 0 | O48: 15 | P48: 58 | R48: =P48-O48 -> 43
B49: 7 | D49: 10-50 | F49: 2 | M49: =IF(AND(N48>=O53,N48<=P53),N53,IF(AND(N48>=O54,N48<=P54),N54,IF(AND(N48>=O55,N48<=P55),N55,IF(AND(N48>=O56,N48<=P56),N56,IF(AND(N48>=O57,N48<=P57),N57,IF(N48<O53,"")))))) -> 
B50: 7 | D50: 50-100 | F50: 3
B51: 7 | D51: >100 | F51: 4
N52: Risk Profile | O52: (Score)
B53: 8 | C53: =B51+1 -> 8 | D53: What is your annual family income from all sources in lakhs? | E53: =IF(E54="Y",1,IF(E55="Y",2,IF(E56="Y",3,IF(E57="Y",4,"-")))) -> - | F53: 2 | N53: Super Safe | O53: =O48 -> 15 | P53: =O53+Q53 -> 23 | Q53: 8 | R53: =SUM(Q53:Q57)+COUNTA(O53:O57)-1 -> 43
B54: 8 | D54: <10 | F54: 1 | N54: Safe | O54: =P53+1 -> 24 | P54: 32 | Q54: 8
B55: 8 | D55: 10-50 | F55: 2 | N55: Balanced | O55: 33 | P55: 42 | Q55: 9
B56: 8 | D56: 50-100 | F56: 3 | N56: Aggressive | O56: 43 | P56: 51 | Q56: 8
B57: 8 | D57: >100 | F57: 4 | N57: Very Aggressive | O57: 52 | P57: =P48 -> 58 | Q57: =P57-O57 -> 6
B59: =IF(C64>B58,"",IF(C63="",B58,C63)) -> 9 | F59: 2
B60: 9 | F60: 1 | N60: Yes
B61: 9 | F61: 2 | N61: No
B62: 9 | F62: 3
B63: 9 | C63: =B57+1 -> 9 | D63: What percentage of family annual income have you saved in last 3 years? | E63: =IF(E64="Y",1,IF(E65="Y",2,IF(E66="Y",3,IF(E67="Y",4,"-")))) -> - | F63: 4
D64: < 15%
B65: 10 | D65: 15-30% | F65: 2
B66: 10 | D66: 30-40% | F66: 3
B67: 10 | D67: > 40% | F67: 2
B68: 10 | F68: 1
C69: =B63+1 -> 10 | D69: What best characterizes your risk appetite? | E69: =IF(E70="Y",3,IF(E71="Y",2,IF(E72="Y",1,"-"))) -> -
B70: 11 | D70: High | F70: 2
B71: 11 | D71: Moderate | F71: 4
B72: 11 | D72: Low | F72: 2
B73: 11 | F73: 1
B74: 11 | C74: =B68+1 -> 11 | D74: What best characterizes your Risk/Reward preference? | E74: =IF(E75="Y",4,IF(E76="Y",2,IF(E77="Y",1,IF(E78="Y",3,"-")))) -> - | F74: 3
D75: High Risk / High Return
B76: 12 | D76: Medium Risk / Medium Return | F76: 2
B77: 12 | D77: Low Risk / Low Return | F77: 4
B78: 12 | D78: Market linked | F78: 3
B79: 12 | F79: 2
B80: 12 | C80: =B74+1 -> 12 | D80: What is your primary investment objective? | E80: =IF(E81="Y",4,IF(E82="Y",3,IF(E83="Y",2,IF(E84="Y",1,"-")))) -> - | F80: 1
D81: Capital appreciation
B82: 13 | D82: Regular income | F82: 3
B83: 13 | D83: Liquidity | F83: 1
B84: 13 | D84: Capital preservation | F84: 2
B85: 13 | F85: 3
B86: 13 | C86: =B80+1 -> 13 | D86: What is your investment horizon (# of years)? | E86: =IF(E87="Y",1,IF(E88="Y",2,IF(E89="Y",3,IF(E90="Y",4,"-")))) -> - | F86: 4
D87: <2
B88: 14 | D88: 2-4 | F88: 4
B89: 14 | D89: 4-7 | F89: 1
B90: 14 | D90: >7 | F90: 2
B91: 14 | F91: 3
B92: 14 | C92: =B86+1 -> 14 | D92: What is your outstanding obligation (in lakhs)? | E92: =IF(E93="Y",1,IF(E94="Y",2,IF(E95="Y",3,IF(E96="Y",4,"-")))) -> - | F92: 4
D93: >100
B94: 15 | D94: 25-100 | F94: 3
B95: 15 | D95: 5-25 | F95: 1
B96: 15 | D96: <5 | F96: 2
B97: 15 | F97: 3
B98: 15 | C98: =B92+1 -> 15 | D98: How familiar are you with investments in securities market? | E98: =IF(E99="Y",1,IF(E100="Y",2,IF(E101="Y",3,IF(E102="Y",4,"-")))) -> - | F98: 4
D99: Not at all
D100: Limited familiarity
D101: Good familiarity
D102: Extensive knowledge
C104: =IF(AND(COUNTIF(E11:E102,"Y")<>15,COUNTIF(E11:E102,"Y")<>0),"Error in reponses, please check all responses","") -> 
C105: Based on above responses, your risk profile is | E105: =IF(C104<>"","",M49) -> 
C107: Do you accept our assessment of risk profile?
C109: =IF(E107="Yes","I agree with the assesment","No, I don't agree with risk profile evaluated above and I believe my risk profile is") -> No, I don't agree with risk profile evaluated above and I believe my risk profile is
C111: Client's Signature
C114: Date:

Sheet Budget Book
A1: PERSONAL GOAL PLANNING
A3: PROJECTED MONTHLY INCOME | B3: Income 1 | D3: 0 | F3: PROJECTED BALANCE (Projected income minus expenses) | I3: =D5-I58 -> 0
B4: Extra income | D4: 0
B5: Total monthly income | D5: 0 | F5: ACTUAL BALANCE (Actual income minus expenses) | I5: =D9-I60 -> 0
A7: ACTUAL MONTHLY INCOME | B7: Income 1 | D7: 0 | F7: DIFFERENCE (Actual minus projected) | I7: =I5-I3 -> 0
B8: Extra income | D8: 0
B9: Total monthly income | D9: 0
A11: HOUSING | B11: Projected Cost | C11: Actual Cost | D11: Difference | F11: ENTERTAINMENT | G11: Projected Cost | H11: Actual Cost | I11: Difference
A12: Mortgage or rent | B12: 0 | C12: 0 | D12: =Housing[[#This Row],[Projected Cost]]-Housing[[#This Row],[Actual Cost]] -> 0 | F12: Night out | G12: 0 | H12: 0 | I12: =Entertainment[[#This Row],[Projected Cost]]-Entertainment[[#This Row],[Actual Cost]] -> 0
A13: Phone | B13: 0 | C13: 0 | D13: =Housing[[#This Row],[Projected Cost]]-Housing[[#This Row],[Actual Cost]] -> 0 | F13: Music platforms | G13: 0 | H13: 0 | I13: =Entertainment[[#This Row],[Projected Cost]]-Entertainment[[#This Row],[Actual Cost]] -> 0
A14: Electricity | B14: 0 | C14: 0 | D14: =Housing[[#This Row],[Projected Cost]]-Housing[[#This Row],[Actual Cost]] -> 0 | F14: Movies | G14: 0 | H14: 0 | I14: =Entertainment[[#This Row],[Projected Cost]]-Entertainment[[#This Row],[Actual Cost]] -> 0
A15: Gas | B15: 0 | C15: 0 | D15: =Housing[[#This Row],[Projected Cost]]-Housing[[#This Row],[Actual Cost]] -> 0 | F15: Concerts | G15: 0 | H15: 0 | I15: =Entertainment[[#This Row],[Projected Cost]]-Entertainment[[#This Row],[Actual Cost]] -> 0
A16: Water and sewer | B16: 0 | C16: 0 | D16: =Housing[[#This Row],[Projected Cost]]-Housing[[#This Row],[Actual Cost]] -> 0 | F16: Sporting events | G16: 0 | H16: 0 | I16: =Entertainment[[#This Row],[Projected Cost]]-Entertainment[[#This Row],[Actual Cost]] -> 0
A17: Cable | B17: 0 | C17: 0 | D17: =Housing[[#This Row],[Projected Cost]]-Housing[[#This Row],[Actual Cost]] -> 0 | F17: Live theater | G17: 0 | H17: 0 | I17: =Entertainment[[#This Row],[Projected Cost]]-Entertainment[[#This Row],[Actual Cost]] -> 0
A18: Waste removal | B18: 0 | C18: 0 | D18: =Housing[[#This Row],[Projected Cost]]-Housing[[#This Row],[Actual Cost]] -> 0 | F18: Other | G18: 0 | I18: =Entertainment[[#This Row],[Projected Cost]]-Entertainment[[#This Row],[Actual Cost]] -> 0
A19: Maintenance or repairs | B19: 0 | C19: 0 | D19: =Housing[[#This Row],[Projected Cost]]-Housing[[#This Row],[Actual Cost]] -> 0 | F19: Other | G19: 0 | I19: =Entertainment[[#This Row],[Projected Cost]]-Entertainment[[#This Row],[Actual Cost]] -> 0
A20: Supplies | B20: 0 | C20: 0 | D20: =Housing[[#This Row],[Projected Cost]]-Housing[[#This Row],[Actual Cost]] -> 0 | F20: Other | G20: 0 | I20: =Entertainment[[#This Row],[Projected Cost]]-Entertainment[[#This Row],[Actual Cost]] -> 0
A21: Other | B21: 0 | C21: 0 | D21: =Housing[[#This Row],[Projected Cost]]-Housing[[#This Row],[Actual Cost]] -> 0 | F21: Subtotal | G21: =SUBTOTAL(109,G12:G20) -> 0 | H21: =SUBTOTAL(109,H12:H20) -> 0 | I21: =SUBTOTAL(109,Entertainment[Difference]) -> 0
A22: Subtotal | B22: =SUBTOTAL(109,B12:B21) -> 0 | C22: =SUBTOTAL(109,C12:C21) -> 0 | D22: =SUBTOTAL(109,Housing[Difference]) -> 0
F23: LOANS | G23: Projected Cost | H23: Actual Cost | I23: Difference
A24: TRANSPORTATION | B24: Projected Cost | C24: Actual Cost | D24: Difference | F24: Personal | G24: 0 | H24: 0 | I24: =Loans[[#This Row],[Projected Cost]]-Loans[[#This Row],[Actual Cost]] -> 0
A25: Vehicle payment | B25: 0 | C25: 0 | D25: =Transportation[[#This Row],[Projected Cost]]-Transportation[[#This Row],[Actual Cost]] -> 0 | F25: Student | G25: 0 | H25: 0 | I25: =Loans[[#This Row],[Projected Cost]]-Loans[[#This Row],[Actual Cost]] -> 0
A26: Bus/taxi fare | B26: 0 | D26: =Transportation[[#This Row],[Projected Cost]]-Transportation[[#This Row],[Actual Cost]] -> 0 | F26: Credit card | G26: 0 | H26: 0 | I26: =Loans[[#This Row],[Projected Cost]]-Loans[[#This Row],[Actual Cost]] -> 0
A27: Insurance | B27: 0 | D27: =Transportation[[#This Row],[Projected Cost]]-Transportation[[#This Row],[Actual Cost]] -> 0 | F27: Credit card | G27: 0 | H27: 0 | I27: =Loans[[#This Row],[Projected Cost]]-Loans[[#This Row],[Actual Cost]] -> 0
A28: Licensing | B28: 0 | C28: 0 | D28: =Transportation[[#This Row],[Projected Cost]]-Transportation[[#This Row],[Actual Cost]] -> 0 | F28: Credit card | G28: 0 | H28: 0 | I28: =Loans[[#This Row],[Projected Cost]]-Loans[[#This Row],[Actual Cost]] -> 0
A29: Fuel | B29: 0 | C29: 0 | D29: =Transportation[[#This Row],[Projected Cost]]-Transportation[[#This Row],[Actual Cost]] -> 0 | F29: Other | I29: =Loans[[#This Row],[Projected Cost]]-Loans[[#This Row],[Actual Cost]] -> 0
A30: Maintenance | B30: 0 | C30: 0 | D30: =Transportation[[#This Row],[Projected Cost]]-Transportation[[#This Row],[Actual Cost]] -> 0 | F30: Subtotal | I30: =SUBTOTAL(109,Loans[Difference]) -> 0
A31: Other | B31: 0 | C31: 0 | D31: =Transportation[[#This Row],[Projected Cost]]-Transportation[[#This Row],[Actual Cost]] -> 0
A32: Subtotal | B32: =SUBTOTAL(109,B25:B31) -> 0 | C32: ₹ - | D32: =SUBTOTAL(109,Transportation[Difference]) -> 0 | F32: TAXES | G32: Projected Cost | H32: Actual Cost | I32: Difference
F33: Federal | I33: =Taxes[[#This Row],[Projected Cost]]-Taxes[[#This Row],[Actual Cost]] -> 0
A34: INSURANCE | B34: Projected Cost | C34: Actual Cost | D34: Difference | F34: State | I34: =Taxes[[#This Row],[Projected Cost]]-Taxes[[#This Row],[Actual Cost]] -> 0
A35: Home | B35: 0 | D35: =Insurance[[#This Row],[Projected Cost]]-Insurance[[#This Row],[Actual Cost]] -> 0 | F35: Local | I35: =Taxes[[#This Row],[Projected Cost]]-Taxes[[#This Row],[Actual Cost]] -> 0
A36: Health | B36: 0 | D36: =Insurance[[#This Row],[Projected Cost]]-Insurance[[#This Row],[Actual Cost]] -> 0 | F36: Other | I36: =Taxes[[#This Row],[Projected Cost]]-Taxes[[#This Row],[Actual Cost]] -> 0
A37: Life | B37: 0 | D37: =Insurance[[#This Row],[Projected Cost]]-Insurance[[#This Row],[Actual Cost]] -> 0 | F37: Subtotal | I37: =SUBTOTAL(109,Taxes[Difference]) -> 0
A38: Other | B38: 0 | D38: =Insurance[[#This Row],[Projected Cost]]-Insurance[[#This Row],[Actual Cost]] -> 0
A39: Subtotal | B39: ₹ - | C39: =SUBTOTAL(109,C35:C38) -> 0 | D39: =SUBTOTAL(109,Insurance[Difference]) -> 0 | F39: SAVINGS OR INVESTMENTS | G39: Projected Cost | H39: Actual Cost | I39: Difference
F40: Retirement account | I40: =Savings[[#This Row],[Projected Cost]]-Savings[[#This Row],[Actual Cost]] -> 0
A41: FOOD | B41: Projected Cost | C41: Actual Cost | D41: Difference | F41: Investment account | I41: =Savings[[#This Row],[Projected Cost]]-Savings[[#This Row],[Actual Cost]] -> 0
A42: Groceries | B42: 0 | D42: =Food[[#This Row],[Projected Cost]]-Food[[#This Row],[Actual Cost]] -> 0 | F42: Other | I42: =Savings[[#This Row],[Projected Cost]]-Savings[[#This Row],[Actual Cost]] -> 0
A43: Dining out | B43: 0 | D43: =Food[[#This Row],[Projected Cost]]-Food[[#This Row],[Actual Cost]] -> 0 | F43: Subtotal | I43: =SUBTOTAL(109,Savings[Difference]) -> 0
A44: Other | B44: 0 | D44: =Food[[#This Row],[Projected Cost]]-Food[[#This Row],[Actual Cost]] -> 0
A45: Subtotal | B45: ₹ - | C45: =SUBTOTAL(109,C42:C44) -> 0 | D45: =SUBTOTAL(109,Food[Difference]) -> 0 | F45: GIFTS AND DONATIONS | G45: Projected Cost | H45: Actual Cost | I45: Difference
F46: Charity 1 | I46: =Gifts[[#This Row],[Projected Cost]]-Gifts[[#This Row],[Actual Cost]] -> 0
A47: PETS | B47: Projected Cost | C47: Actual Cost | D47: Difference | F47: Charity 2 | I47: =Gifts[[#This Row],[Projected Cost]]-Gifts[[#This Row],[Actual Cost]] -> 0
A48: Food | D48: =Pets[[#This Row],[Projected Cost]]-Pets[[#This Row],[Actual Cost]] -> 0 | F48: Charity 3 | I48: =Gifts[[#This Row],[Projected Cost]]-Gifts[[#This Row],[Actual Cost]] -> 0
A49: Medical | D49: =Pets[[#This Row],[Projected Cost]]-Pets[[#This Row],[Actual Cost]] -> 0 | F49: Subtotal | G49: =SUBTOTAL(109,G46:G48) -> 0 | H49: =SUBTOTAL(109,H46:H48) -> 0 | I49: =SUBTOTAL(109,Gifts[Difference]) -> 0
A50: Grooming | D50: =Pets[[#This Row],[Projected Cost]]-Pets[[#This Row],[Actual Cost]] -> 0
A51: Toys | D51: =Pets[[#This Row],[Projected Cost]]-Pets[[#This Row],[Actual Cost]] -> 0 | F51: LEGAL | G51: Projected Cost | H51: Actual Cost | I51: Difference
A52: Other | D52: =Pets[[#This Row],[Projected Cost]]-Pets[[#This Row],[Actual Cost]] -> 0 | F52: Attorney | I52: =Legal[[#This Row],[Projected Cost]]-Legal[[#This Row],[Actual Cost]] -> 0
A53: Subtotal | B53: =SUBTOTAL(109,B48:B52) -> 0 | C53: =SUBTOTAL(109,C48:C52) -> 0 | D53: =SUBTOTAL(109,Pets[Difference]) -> 0 | F53: Alimony | I53: =Legal[[#This Row],[Projected Cost]]-Legal[[#This Row],[Actual Cost]] -> 0
F54: Payments on lien or judgment | I54: =Legal[[#This Row],[Projected Cost]]-Legal[[#This Row],[Actual Cost]] -> 0
A55: PERSONAL CARE | B55: Projected Cost | C55: Actual Cost | D55: Difference | F55: Other | I55: =Legal[[#This Row],[Projected Cost]]-Legal[[#This Row],[Actual Cost]] -> 0
A56: Medical | D56: =PersonalCare[[#This Row],[Projected Cost]]-PersonalCare[[#This Row],[Actual Cost]] -> 0 | F56: Subtotal | G56: =SUBTOTAL(109,G52:G55) -> 0 | H56: =SUBTOTAL(109,H52:H55) -> 0 | I56: =SUBTOTAL(109,Legal[Difference]) -> 0
A57: Hair/nails | D57: =PersonalCare[[#This Row],[Projected Cost]]-PersonalCare[[#This Row],[Actual Cost]] -> 0
A58: Clothing | D58: =PersonalCare[[#This Row],[Projected Cost]]-PersonalCare[[#This Row],[Actual Cost]] -> 0 | F58: TOTAL PROJECTED COST | I58: =SUBTOTAL(109,Housing[Projected Cost],Transportation[Projected Cost],Insurance[Projected Cost],Food[Projected Cost],Pets[Projected Cost],PersonalCare[Projected Cost],Entertainment[Projected Cost],Loans[Projected Cost],Taxes[Projected Cost],Savings[Projected Cost],Gifts[Projected Cost],Legal[Projected Cost]) -> 0
A59: Dry cleaning | D59: =PersonalCare[[#This Row],[Projected Cost]]-PersonalCare[[#This Row],[Actual Cost]] -> 0
A60: Health club | D60: =PersonalCare[[#This Row],[Projected Cost]]-PersonalCare[[#This Row],[Actual Cost]] -> 0 | F60: TOTAL ACTUAL COST | I60: =SUBTOTAL(109,Housing[Actual Cost],Transportation[Actual Cost],Insurance[Actual Cost],Food[Actual Cost],Pets[Actual Cost],PersonalCare[Actual Cost],Entertainment[Actual Cost],Loans[Actual Cost],Taxes[Actual Cost],Savings[Actual Cost],Gifts[Actual Cost],Legal[Actual Cost]) -> 0
A61: Organization dues or fees | D61: =PersonalCare[[#This Row],[Projected Cost]]-PersonalCare[[#This Row],[Actual Cost]] -> 0
A62: Other | D62: =PersonalCare[[#This Row],[Projected Cost]]-PersonalCare[[#This Row],[Actual Cost]] -> 0 | F62: TOTAL DIFFERENCE | I62: =I58-I60 -> 0
A63: Subtotal | B63: =SUBTOTAL(109,B56:B62) -> 0 | C63: =SUBTOTAL(109,C56:C62) -> 0 | D63: =SUBTOTAL(109,PersonalCare[Difference]) -> 0

Sheet Money
A1: S. NO. | B1: PARTICULARS | C1: DATE | D1: INVESTMENT AMOUNT | E1: GOAL AMOUNT | F1: CURRENT VALUE | G1: Date of Investment | H1: CURRENT DATE | I1: Return on Investment
A2: 1 | B2: MULTIBAGGER | E2: 0 | F2: 0 | H2: =TODAY() -> 2025-03-31 | I2: =((F2-D2)/D2) -> 
A3: 2 | B3: 10% STRATEGY | E3: 0 | F3: 0 | H3: 2025-03-31
A4: 3 | B4: IDEA2ACT AND WIN | E4: 0 | F4: 0 | H4: 2025-03-31
A5: 4 | B5: IIFL FLEXI CAP | E5: 0 | F5: 0 | H5: 2025-03-31
A6: 5 | B6: EQUITY MF | E6: 0 | F6: 0 | H6: 2025-03-31
A7: 6 | B7: DEBT MF | H7: 2025-03-31
A8: 7 | B8: HYBRID MF | H8: 2025-03-31
H9: 2025-03-31
H10: 2025-03-31
H11: 2025-03-31
H12: 2025-03-31
E13: Achieved | F13: =SUM(F2:F12) -> 0
E14: Required | F14: 0
E15: Shortfall | F15: 0

Sheet Security
A2: S. No. | B2: Particular | C2: RECOMMENDED AMOUNT | D2: INSURED AMOUNT | E2: Policy No | F2: Company | G2: Amount | H2: Renewal Date | I2: Remark
A3: 1 | B3: HEALTH INSRANCE
A4: 2 | B4: LIFE INSURANCE
A5: 3 | B5: ACCIDENTAL INSURANCE
A6: 4 | B6: CRITICAL ILLNESS
A7: 5 | B7: Home Insurance
A8: 6 | B8: Car Insurance
A9: 7 | B9: Bike Insurance
A10: 8

Sheet Aspirations
A1: Goal 1 | E1: TOTAL SIP REQUIRED
A2: RETIREMENT PLANNING | E2: RETIREMENT | F2: =ROUND(B13,1000) -> 0
A3: COST AT 60 | B3: =FV(B8,60-B4,0,-B5,1) -> 0 | E3: CHILD MARRIAGE/ EDUCATION | F3: =B64 -> 2392.638
A4: CURRENT AGE | B4: =Profile!C33 -> 1900-02-05 | E4: Laisure | F4: =B72 -> 11565.12611
A5: CURRENT ANNUAL EXPENSES | B5: =Profile!B9*12 -> 0 | E5: Wealth Creation | F5: =B78 -> 6629.415369
A6: TIME | B6: =60-Profile!C33 -> 24 | E6: OTHER | F6: 0
A7: COMPOUNDING | B7: YEARLY | E7: TOTAL SIP REQUIRED | F7: =SUM(F2:F6) -> 20587.17948
A8: INFLATION | B8: 0.05
A9: RETURN ON INVESTMENT | B9: 0.12
A10: REAL RETURN | B10: =(1+B9)/(1+B8)-1 -> 0.06666666667 | E10: ALLOCATION AS PER BUDGET
A11: LIVING AGE | B11: 30 | E11: RETIREMENT | F11: =Profile!B9*10% -> 0
A12: CORPUS AT 60 | B12: =PV(B10,B11,-B3,0,0) -> 0 | E12: CHILD MARRIAGE/ EDUCATION | F12: =Profile!B9*10% -> 0
A13: MONTHLY SIP REQUIRED | B13: =PMT(B9/12,B6*12,0,-B12,0) -> 0 | E13: Laisure | F13: =Profile!B9*5% -> 0
E14: Wealth Creation | F14: =Profile!B9*5% -> 0
A15: AGE | B15: EXPENSES | E15: OTHER | F15: 0
A16: 60 | B16: =B3 -> 0 | E16: TOTAL SIP REQUIRED | F16: =SUM(F11:F15) -> 0
A17: 61 | B17: =B16*107% -> 0 | E17: CHILD MARRIAGE/ EDUCATION | F17: =B72 -> 11565.12611
A18: 62 | B18: 0 | E18: HOME/OFFICE | F18: =#REF! -> 
A19: 63 | B19: 0 | E19: ASPIRATION | F19: =#REF! -> 
A20: 64 | B20: 0 | E20: OTHER | F20: =#REF! -> 
A21: 65 | B21: 0 | E21: TOTAL SIP REQUIRED | F21: =SUM(F16:F20) -> 
A22: 66 | B22: 0
A23: 67 | B23: 0
A24: 68 | B24: 0
A25: 69 | B25: 0
A26: 70 | B26: 0
A27: 71 | B27: 0
A28: 72 | B28: 0
A29: 73 | B29: 0
A30: 74 | B30: 0
A31: 75 | B31: 0
A32: 76 | B32: 0
A33: 77 | B33: 0
A34: 78 | B34: 0
A35: 79 | B35: 0
A36: 80 | B36: 0
A37: 81 | B37: 0
A38: 82 | B38: 0
A39: 83 | B39: 0
A40: 84 | B40: 0
A41: 85 | B41: 0
A42: 86 | B42: 0
A43: 87 | B43: 0
A44: 88 | B44: 0
A45: 89 | B45: 0
A46: 90 | B46: 0
A47: 91 | B47: 0
A48: 92 | B48: 0
A49: 93 | B49: 0
A50: 94 | B50: 0
A51: 95 | B51: 0
A52: 96 | B52: 0
A53: 97 | B53: 0
A54: 98 | B54: 0
A55: 99 | B55: 0
A56: 100 | B56: 0
A59: Goal 2 | E59: Total | F59: =SUM(F11:F14) -> 0
A60: Education
A61: Current Cost | B61: =Profile!B43 -> 1000000
A62: Time | B62: =18-Profile!C35 -> 18
A63: Future Value | B63: =FV(7%,B62,0,-B61,1) -> 3379932.276
A64: SIP Reuired | B64: =PMT(B10^1/12,B62*12,0,-B61,1) -> 2392.638
A66: Goal 3
A67: Laisure Expenses
A68: Current Estimated Expenses | B68: =Profile!B44 -> 200000
A69: TIME | B69: =60-Profile!C33 -> 24
A70: Future Cost | B70: =FV(B71,Profile!C44,0,-Aspirations!B68,1) -> 248139.2772
A71: Nominal Rate | B71: =NOMINAL(B9,12) -> 0.1138655152
A72: SIP Reuired | B72: =PMT(B9^1/12,B69,-B70,0,1) -> 11565.12611
A74: Goal 4
A75: Wealth Creation
A76: Milestone Level | B76: =Profile!B45 -> 10000000
A77: Time | B77: =Aspirations!B69 -> 24
A78: Monthly SIP Reuired | B78: =PMT(B71^1/12,B77*12,0,-B76,1) -> 6629.415369

Sheet CALCULATIONS
A1: SIP TO FUTURE VALUE CALCULATOR
A2: 0.12 | B2: 5000 | C2: 10000 | D2: 20000
A3: 5 | B3: =FV(A2/12,A3*12,-B2,0,1) -> 412431.8328 | C3: =FV($A$2/12,A3*12,-$C$2,0,1) -> 824863.6655 | D3: =FV(12%/12,A3*12,-$D$2,0,1) -> 1649727.331
A4: 10 | B4: =FV(A2/12,A4*12,-B2,0,1) -> 1161695.382 | C4: 2323390.764 | D4: 4646781.527
A5: 15 | B5: =FV(A2/12,A5*12,-B2,0,1) -> 2522879.998 | C5: 5045759.995 | D5: 10091519.99
A6: 40 | B6: =FV(A2/12,A6*12,-B2,0,1) -> 59412101.18 | C6: 118824202.4 | D6: 237648404.7
A7: 80 | B7: =FV(A2/12,A7*12,-B2,0,1) -> 7108522749 | C7: 1.42170455e+10 | D7: 2.8434091e+10
A12: MILESTONE CALCULATOR
A13: YEARS | B13: 12
A14: RATE OF RETURN | B14: 0.12
A15: MILESTONE | B15: 10000000 | C15: 20000000 | D15: 40000000 | E15: 80000000
A16: SIP REQUIRED | B16: =PMT($B$14/12,$B$13*12,0,-B15,1) -> 31031.59816 | C16: 62063.19632 | D16: 124126.3926 | E16: 248252.7853

Sheet Review
B2: Date | C2: Remark
